bitfinex-derivatives/quotes_BTCF0:USTF0_20241005
["timestamp","ask_amount","ask_price","bid_price","bid_amount"]
[1728157823046,0.004,61848.0,61847.0,0.30412923]
[1728157823753,0.004,61848.0,61847.0,0.17523491]
[1728157823952,0.003,61848.0,61847.0,0.30412437]
[1728157824355,0.002,61848.0,61847.0,0.30512437]
[1728157824958,0.002,61848.0,61847.0,0.5531827]
[1728157825861,0.002,61848.0,61847.0,0.5521827]
[1728157826060,0.001,61848.0,61847.0,0.5531827]
[1728157826754,0.0113,61854.0,61853.0,0.064672]
[1728157826947,0.0332,61858.0,61853.0,0.064672]
[1728157826948,0.0332,61858.0,61857.0,0.064668]
[1728157827147,0.0332,61858.0,61857.0,0.174668]
[1728157828043,0.0332,61858.0,61857.0,0.064668]
[1728157828852,0.0422,61858.0,61857.0,0.064668]
[1728157829659,0.0542,61858.0,61857.0,0.064668]
[1728157830350,0.0542,61858.0,61857.0,0.08778843]
[1728157830956,0.0542,61858.0,61853.0,0.426512]
[1728157831161,0.11,61854.0,61853.0,0.425472]
[1728157831954,0.11,61854.0,61853.0,0.44836309]
[1728157832858,0.117,61854.0,61853.0,0.44936309]
[1728157833560,0.122,61854.0,61853.0,0.44936309]
[1728157835558,0.122,61854.0,61853.0,0.08856309]
[1728157836157,0.012,61854.0,61853.0,0.08856309]
[1728157836353,0.012,61854.0,61853.0,0.16930862]
[1728157836557,0.012,61854.0,61853.0,0.08856309]
[1728157837662,0.122,61854.0,61853.0,0.08856309]
[1728157838154,0.122,61854.0,61853.0,0.02389109]
[1728157838957,0.15941782,61854.0,61853.0,0.02389109]
[1728157839352,0.2028626,61854.0,61853.0,0.02389109]
[1728157841150,0.20286251,61854.0,61853.0,0.02389109]
[1728157843064,0.15941821,61854.0,61853.0,0.02389109]
[1728157847065,0.122,61854.0,61853.0,0.02389109]
[1728157853066,0.1551,61854.0,61853.0,0.02389109]
[1728157861967,0.28552212,61854.0,61853.0,0.02389109]
[1728157863383,0.17552212,61854.0,61853.0,0.02389109]
[1728157863587,0.28552212,61854.0,61853.0,0.02389109]
[1728157867583,0.43081056,61854.0,61853.0,0.02389109]
[1728157867770,0.28552212,61854.0,61853.0,0.02389109]
[1728157868283,0.43081056,61854.0,61853.0,0.02389109]
[1728157869180,0.1551,61854.0,61853.0,0.26045603]
[1728157869482,0.219771,61854.0,61853.0,0.10892385]
[1728157869682,0.219771,61854.0,61853.0,0.20595094]
[1728157869881,0.219771,61854.0,61853.0,0.10892385]
[1728157870572,0.219771,61854.0,61853.0,0.20595094]
[1728157870775,0.219771,61854.0,61853.0,0.10892385]
[1728157871187,0.219771,61854.0,61853.0,0.20595094]
[1728157871391,0.219771,61854.0,61853.0,0.10892385]
[1728157873783,0.219771,61854.0,61853.0,0.1897621]
[1728157874184,0.219771,61854.0,61853.0,0.001]
[1728157875086,0.1551,61854.0,61852.0,0.08083825]
[1728157875298,0.064672,61853.0,61852.0,0.08083825]
[1728157875687,0.064672,61853.0,61852.0,0.18890473]
[1728157875982,0.064672,61853.0,61852.0,0.08083825]
[1728157876180,0.064672,61853.0,61848.0,0.09702709]
[1728157876181,0.064672,61853.0,61851.0,0.08083825]
[1728157876379,0.174673,61852.0,61851.0,0.08083825]
[1728157876585,0.174673,61852.0,61851.0,0.18889761]
[1728157876994,0.20272036,61852.0,61848.0,0.09702709]
[1728157877201,0.20272036,61852.0,61845.0,0.0004]
[1728157877202,0.06468,61846.0,61845.0,0.0004]
[1728157877504,0.21777151,61846.0,61845.0,0.0004]
[1728157877712,0.4498237,61846.0,61845.0,0.0004]
[1728157877900,0.40019485,61846.0,61845.0,0.0004]
[1728157878100,0.44982389,61846.0,61845.0,0.0004]
[1728157878405,0.44982389,61846.0,61845.0,0.0014]
[1728157878705,0.31998898,61846.0,61845.0,0.0014]
[1728157878895,0.44978919,61846.0,61845.0,0.0044]
[1728157880298,0.30448021,61846.0,61845.0,0.0044]
[1728157880500,0.44978919,61846.0,61845.0,0.0044]
[1728157882807,0.30448021,61846.0,61845.0,0.0044]
[1728157883703,0.25485116,61846.0,61845.0,0.0044]
[1728157884122,0.17468,61846.0,61845.0,0.0044]
[1728157884415,0.17468,61846.0,61845.0,0.06901867]
[1728157885211,0.53548,61846.0,61845.0,0.0044]
[1728157887820,0.53548,61846.0,61845.0,0.05286136]
[1728157888410,0.53548,61846.0,61845.0,0.0044]
[1728157892018,0.57228933,61846.0,61845.0,0.0044]
[1728157893817,0.57228933,61846.0,61839.0,0.0004]
[1728157893818,0.064686,61840.0,61839.0,0.0004]
[1728157894121,0.21149533,61840.0,61839.0,0.0004]
[1728157895019,0.21349533,61840.0,61839.0,0.0104]
[1728157895617,0.57429533,61840.0,61839.0,0.0104]
[1728157899028,0.537486,61840.0,61839.0,0.0104]
[1728157903633,0.570186,61840.0,61839.0,0.0104]
[1728157909839,0.930986,61840.0,61839.0,0.0104]
[1728157910227,0.3628,61840.0,61839.0,0.1204]
[1728157910429,0.3628,61840.0,61839.0,0.248587]
[1728157911732,0.3628,61840.0,61839.0,0.2711762]
[1728157911733,0.002,61840.0,61839.0,0.2711762]
[1728157911934,0.002,61840.0,61839.0,0.1611762]
[1728157912723,0.112,61840.0,61839.0,0.0411]
[1728157914231,0.112,61840.0,61839.0,0.0104]
[1728157916132,0.176686,61840.0,61839.0,0.0104]
[1728157919540,0.176686,61840.0,61839.0,0.19957713]
[1728157920231,0.112,61840.0,61839.0,0.19957713]
[1728157921033,0.112,61840.0,61839.0,0.09123825]
[1728157921232,0.112,61840.0,61839.0,0.0104]
[1728157921432,0.112,61840.0,61839.0,0.09123825]
[1728157922229,0.112,61840.0,61839.0,0.11880775]
[1728157925140,0.112,61840.0,61839.0,0.21583484]
[1728157925554,0.112,61840.0,61839.0,0.11879998]
[1728157927749,0.762,61840.0,61839.0,0.11879998]
[1728157928846,0.826686,61840.0,61839.0,0.11879998]
[1728157929045,0.857086,61840.0,61839.0,0.21576569]
[1728157929239,0.857086,61840.0,61839.0,0.0104]
[1728157930049,0.89360697,61840.0,61839.0,0.0104]
[1728157930247,0.89358164,61840.0,61839.0,0.0104]
[1728157933065,1.61518164,61840.0,61839.0,0.0104]
[1728157934954,1.61507217,61840.0,61839.0,0.0104]
[1728157935150,1.578686,61840.0,61839.0,0.0104]
[1728157935349,0.857086,61840.0,61839.0,0.0104]
[1728157935545,1.578686,61840.0,61839.0,0.0104]
[1728157937144,1.61508117,61840.0,61839.0,0.0104]
[1728157937349,1.578686,61840.0,61839.0,0.0104]
[1728157939546,0.064689,61837.0,61836.0,0.08080878]
[1728157939751,0.11,61837.0,61834.0,0.08080878]
[1728157939953,0.174691,61835.0,61834.0,0.08080878]
[1728157940256,0.174691,61835.0,61834.0,0.18948941]
[1728157940568,0.064693,61833.0,61832.0,0.08080878]
[1728157940777,0.174693,61833.0,61832.0,0.18957845]
[1728157941054,0.174693,61833.0,61832.0,0.10876967]
[1728157941250,0.174693,61833.0,61832.0,0.18955915]
[1728157942059,0.175693,61833.0,61832.0,0.19355915]
[1728157942261,0.176693,61833.0,61832.0,0.19555915]
[1728157943349,0.176693,61833.0,61832.0,0.006]
[1728157943857,0.002,61833.0,61832.0,0.10866935]
[1728157944155,0.176693,61833.0,61832.0,0.10866935]
[1728157944354,0.176693,61833.0,61829.0,0.064696]
[1728157944355,0.064696,61830.0,61829.0,0.064696]
[1728157944551,0.174696,61830.0,61829.0,0.064696]
[1728157946661,0.064699,61828.0,61826.0,0.0024261]
[1728157946862,0.064699,61828.0,61827.0,0.10838335]
[1728157947558,0.002,61830.0,61827.0,0.10838335]
[1728157947858,0.3608,61833.0,61832.0,0.064694]
[1728157948071,0.3608,61833.0,61832.0,0.17309317]
[1728157948358,0.3608,61833.0,61832.0,0.28282664]
[1728157949362,0.3608,61833.0,61832.0,0.28294437]
[1728157950265,0.3618,61833.0,61832.0,0.28294437]
[1728157950563,0.3628,61833.0,61832.0,0.28294437]
[1728157951959,0.3628,61833.0,61832.0,0.41189807]
[1728157952160,0.3628,61833.0,61832.0,0.37987492]
[1728157952362,0.3628,61833.0,61832.0,0.174694]
[1728157953072,0.3628,61833.0,61832.0,0.19743949]
[1728157954661,0.002,61833.0,61832.0,0.19743949]
[1728157956065,0.0113,61839.0,61832.0,0.19743949]
[1728157956268,0.3608,61840.0,61839.0,0.064687]
[1728157956470,0.39786468,61840.0,61839.0,0.064687]
[1728157956765,0.39786468,61840.0,61839.0,0.126487]
[1728157957171,0.3608,61840.0,61832.0,0.02274549]
[1728157957363,0.3608,61840.0,61828.0,0.36184]
[1728157957364,0.14808239,61839.0,61837.0,0.064689]
[1728157957560,0.111,61839.0,61837.0,0.064689]
[1728157959361,0.111,61839.0,61838.0,0.10814906]
[1728157960170,0.111,61839.0,61838.0,0.17283706]
[1728157960371,0.112,61839.0,61838.0,0.17283706]
[1728157960759,0.111,61839.0,61838.0,0.17283706]
[1728157960965,0.112,61839.0,61838.0,0.17283706]
[1728157961972,0.002,61839.0,61838.0,0.17283706]
[1728157962565,0.002,61839.0,61838.0,0.064688]
[1728157962761,0.002,61839.0,61838.0,0.17282182]
[1728157963174,0.002,61839.0,61838.0,0.064688]
[1728157963874,0.002,61839.0,61838.0,0.17279277]
[1728157964066,0.002,61839.0,61838.0,0.064688]
[1728157966675,0.112,61839.0,61838.0,0.064688]
[1728157967068,0.002,61839.0,61838.0,0.064688]
[1728157968272,0.002,61839.0,61838.0,0.174688]
[1728157976174,0.002,61839.0,61838.0,0.14546511]
[1728157976480,0.002,61839.0,61838.0,0.25363967]
[1728157976683,0.002,61839.0,61838.0,0.14546511]
[1728157977179,0.002,61839.0,61838.0,0.17290971]
[1728157977782,0.002,61839.0,61838.0,0.25375801]
[1728157978376,0.002,61839.0,61838.0,0.17290971]
[1728157978572,0.002,61839.0,61838.0,0.25376068]
[1728157980082,0.002,61839.0,61838.0,0.17290971]
[1728157981687,0.002,61839.0,61838.0,0.17297815]
[1728157982281,0.002,61839.0,61838.0,0.064688]
[1728157982282,0.08179056,61839.0,61838.0,0.064688]
[1728157986380,0.002,61839.0,61838.0,0.064688]
[1728157986576,0.08174045,61839.0,61838.0,0.064688]
[1728157989478,0.002,61839.0,61838.0,0.30215849]
[1728157991586,0.425486,61840.0,61838.0,0.30216294]
[1728157991891,0.425486,61840.0,61839.0,0.23747494]
[1728157992879,0.426486,61840.0,61839.0,0.23747494]
[1728157993080,0.427486,61840.0,61839.0,0.23747494]
[1728157995693,0.427486,61840.0,61839.0,0.108339]
[1728157995877,0.427486,61840.0,61839.0,0.20541727]
[1728157996196,1.077486,61840.0,61839.0,0.20541727]
[1728157996380,1.09232823,61840.0,61831.0,0.11304375]
[1728157996586,0.11,61834.0,61832.0,0.064694]
[1728157996782,0.03680079,61833.0,61832.0,0.064694]
[1728157999190,0.03780079,61833.0,61832.0,0.064694]
[1728157999991,0.03880079,61833.0,61832.0,0.064694]
[1728158001081,0.03880079,61833.0,61831.0,0.02354522]
[1728158001082,0.03877334,61833.0,61831.0,0.02354522]
[1728158001286,0.03677334,61832.0,61829.0,0.064697]
[1728158001488,0.03677334,61831.0,61829.0,0.064697]
[1728158001691,0.03677334,61830.0,61829.0,0.064697]
[1728158001888,0.03677334,61830.0,61828.0,0.11]
[1728158002095,0.002,61833.0,61829.0,0.064697]
[1728158002295,0.03665527,61832.0,61829.0,0.064697]
[1728158002491,0.065693,61833.0,61829.0,0.064697]
[1728158002492,0.03665527,61831.0,61829.0,0.064697]
[1728158002692,0.03665527,61830.0,61829.0,0.064697]
[1728158002887,0.03665527,61832.0,61829.0,0.064697]
[1728158003088,0.03665527,61831.0,61829.0,0.064697]
[1728158003292,0.03665527,61830.0,61829.0,0.064697]
[1728158003492,0.03765527,61830.0,61829.0,0.064697]
[1728158003897,0.001,61830.0,61829.0,0.064697]
[1728158004398,0.001,61830.0,61829.0,0.30234421]
[1728158004900,0.002,61832.0,61829.0,0.30234421]
[1728158005197,0.002,61832.0,61830.0,0.30234321]
[1728158005405,0.002,61832.0,61831.0,0.23764721]
[1728158005406,0.001,61832.0,61831.0,0.23764721]
[1728158005699,0.064693,61833.0,61831.0,0.23764721]
[1728158005893,0.064693,61833.0,61832.0,0.23766794]
[1728158007600,0.065693,61833.0,61832.0,0.23766794]
[1728158008496,0.065693,61833.0,61832.0,0.23755615]
[1728158008700,0.066693,61833.0,61832.0,0.23755615]
[1728158009799,0.002,61833.0,61832.0,0.23755615]
[1728158012493,0.002,61833.0,61832.0,0.10837605]
[1728158013298,0.066693,61833.0,61832.0,0.10837605]
[1728158013498,0.099993,61833.0,61832.0,0.10837605]
[1728158013694,0.099993,61833.0,61832.0,0.18919278]
[1728158014302,0.099993,61833.0,61832.0,0.08081673]
[1728158015000,0.0353,61833.0,61831.0,0.08081673]
[1728158015198,0.206894,61832.0,61831.0,0.08081673]
[1728158016195,0.1422,61832.0,61830.0,0.08081673]
[1728158016397,0.174695,61831.0,61830.0,0.08081673]
[1728158016700,0.174695,61831.0,61830.0,0.18939801]
[1728158018401,0.178695,61831.0,61830.0,0.18939801]
[1728158019492,0.178695,61831.0,61826.0,0.0024261]
[1728158019802,0.174699,61827.0,61826.0,0.0024261]
[1728158026503,0.174699,61827.0,61826.0,0.11102288]
[1728158027010,0.174699,61827.0,61826.0,0.20797456]
[1728158028203,0.174699,61827.0,61826.0,0.20554846]
[1728158028610,0.174699,61827.0,61826.0,0.10859678]
[1728158030512,0.174699,61827.0,61826.0,0.10861108]
[1728158030703,0.535499,61827.0,61826.0,0.10861108]
[1728158032311,0.47884912,61827.0,61826.0,0.23796696]
[1728158033914,0.47884912,61827.0,61826.0,0.10861108]
[1728158034300,0.47884912,61827.0,61826.0,0.23757817]
[1728158036810,0.47884912,61827.0,61826.0,0.23759039]
[1728158039912,0.41415012,61827.0,61826.0,0.23727264]
[1728158040117,0.47884912,61827.0,61826.0,0.23727264]
[1728158041612,0.064703,61824.0,61822.0,0.02302106]
[1728158041919,0.064703,61824.0,61821.0,0.04852247]
[1728158042423,0.064703,61824.0,61822.0,0.04852247]
[1728158043305,0.065703,61824.0,61823.0,0.04852247]
[1728158043619,0.065703,61824.0,61820.0,0.15277142]
[1728158043620,0.065703,61824.0,61822.0,0.04852247]
[1728158044221,0.066703,61824.0,61822.0,0.04852247]
[1728158044424,0.002,61824.0,61822.0,0.04852247]
[1728158044620,0.064704,61823.0,61822.0,0.04852247]
[1728158046319,0.064704,61823.0,61820.0,0.15277142]
[1728158046519,0.064704,61823.0,61822.0,0.04855096]
[1728158047319,0.066704,61823.0,61822.0,0.04855096]
[1728158047715,0.002,61823.0,61822.0,0.04855096]
[1728158048029,0.002,61823.0,61822.0,0.12940163]
[1728158048326,0.002,61823.0,61822.0,0.12943563]
[1728158049520,0.002,61823.0,61822.0,0.62192402]
[1728158049722,0.11,61827.0,61822.0,0.62192402]
[1728158049917,0.064701,61826.0,61825.0,0.12943292]
[1728158050116,0.064701,61826.0,61825.0,0.51620312]
[1728158051315,0.064701,61826.0,61825.0,0.3867702]
[1728158056432,0.3608,61828.0,61826.0,0.0647]
[1728158060622,0.3608,61828.0,61826.0,0.11]
[1728158060825,0.0151,61833.0,61832.0,0.064694]
[1728158061033,0.00326647,61840.0,61832.0,0.064694]
[1728158061034,0.01752647,61840.0,61834.0,0.064692]
[1728158061243,0.01752647,61840.0,61832.0,0.11]
[1728158061244,0.01752647,61840.0,61839.0,0.064687]
[1728158061419,0.00242647,61840.0,61839.0,0.064687]
[1728158062729,0.02442647,61840.0,61839.0,0.064687]
[1728158063226,0.02442647,61840.0,61839.0,0.161787]
[1728158063824,0.0151,61847.0,61846.0,0.06468]
[1728158064025,0.3608,61854.0,61852.0,0.064673]
[1728158064026,0.3759,61854.0,61852.0,0.064673]
[1728158064238,0.3608,61854.0,61853.0,0.1025]
[1728158065123,0.3608,61854.0,61851.0,0.0485214]
[1728158065529,0.3768,61854.0,61850.0,0.11]
[1728158066031,0.4868,61854.0,61849.0,0.064676]
[1728158066334,0.4798,61854.0,61849.0,0.064676]
[1728158066538,0.4848,61854.0,61850.0,0.064675]
[1728158066923,0.11,61851.0,61850.0,0.064675]
[1728158067128,0.3748,61854.0,61849.0,0.11]
[1728158067324,0.3748,61854.0,61853.0,0.064672]
[1728158067937,0.3628,61854.0,61853.0,0.064672]
[1728158068128,0.3678,61854.0,61853.0,0.064672]
[1728158068527,0.3628,61854.0,61853.0,0.064672]
[1728158068725,0.3748,61854.0,61853.0,0.066672]
[1728158069732,0.014,61854.0,61853.0,0.066672]
[1728158069932,0.3748,61854.0,61853.0,0.066672]
[1728158071437,0.3748,61854.0,61853.0,0.08953687]
[1728158071637,0.3748,61854.0,61849.0,0.11]
[1728158071638,0.50883783,61854.0,61849.0,0.11]
[1728158071835,0.14469235,61852.0,61849.0,0.11]
[1728158072040,0.08316117,61851.0,61850.0,0.064675]
[1728158072237,0.14469235,61852.0,61849.0,0.11]
[1728158072540,0.14469235,61852.0,61851.0,0.064674]
[1728158072743,0.13134221,61852.0,61851.0,0.064674]
[1728158073339,0.08148872,61852.0,61851.0,0.064674]
[1728158074847,0.08948872,61852.0,61851.0,0.064674]
[1728158075546,0.09148872,61852.0,61851.0,0.065674]
[1728158077250,0.0915194,61852.0,61851.0,0.065674]
[1728158079640,0.01,61852.0,61851.0,0.065674]
[1728158084249,0.0113,61859.0,61858.0,0.064667]
[1728158084548,0.3608,61864.0,61856.0,0.1583146]
[1728158084750,0.3608,61864.0,61863.0,0.11]
[1728158086549,0.3608,61864.0,61863.0,0.174662]
[1728158086750,0.44357184,61864.0,61863.0,0.0937801]
[1728158087158,0.45757184,61864.0,61863.0,0.11801351]
[1728158087759,0.46457184,61864.0,61863.0,0.11901351]
[1728158088954,0.05930173,61864.0,61863.0,0.11901351]
[1728158089761,0.05930173,61864.0,61863.0,0.60393351]
[1728158090853,0.05730173,61864.0,61863.0,0.60393351]
[1728158091257,0.05730173,61864.0,61863.0,1.20393351]
[1728158091450,0.05030173,61864.0,61863.0,1.20293351]
[1728158091754,0.15841806,61871.0,61870.0,0.064654]
[1728158091755,0.0113,61871.0,61870.0,0.064654]
[1728158091957,0.0113,61871.0,61870.0,0.174654]
[1728158091958,0.04396471,61871.0,61870.0,0.174654]
[1728158092965,0.05796471,61871.0,61870.0,0.175654]
[1728158093158,0.06896471,61871.0,61870.0,0.176654]
[1728158093466,0.06871331,61871.0,61870.0,0.176654]
[1728158093763,0.025,61871.0,61870.0,0.176654]
[1728158095266,0.025,61871.0,61870.0,0.19932885]
[1728158101069,0.025,61871.0,61870.0,0.08932885]
[1728158109773,0.0624964,61871.0,61870.0,0.00845819]
[1728158109979,0.025,61871.0,61868.0,0.11]
[1728158110159,0.08103148,61870.0,61869.0,0.064655]
[1728158111266,0.08103148,61870.0,61869.0,0.065655]
[1728158111963,0.08103148,61870.0,61869.0,0.066655]
[1728158111964,0.08403148,61870.0,61869.0,0.066655]
[1728158112367,0.003,61870.0,61869.0,0.066655]
[1728158112566,0.27833134,61870.0,61869.0,0.066655]
[1728158112772,0.08403148,61870.0,61869.0,0.066655]
[1728158114069,0.08403148,61870.0,61869.0,0.129855]
[1728158114458,0.08403148,61870.0,61869.0,0.160155]
[1728158114871,0.08303148,61870.0,61869.0,1.244035]
[1728158115074,0.08803148,61870.0,61869.0,1.245035]
[1728158115660,0.08803148,61870.0,61869.0,0.645035]
[1728158116860,0.08803148,61870.0,61869.0,0.34893866]
[1728158116861,0.007,61870.0,61869.0,0.34893866]
[1728158117469,0.007,61870.0,61869.0,0.26805589]
[1728158119161,0.007,61870.0,61869.0,0.26811348]
[1728158119367,0.0151,61878.0,61877.0,0.064647]
[1728158119568,0.00242444,61883.0,61880.0,0.064643]
[1728158119779,0.00242444,61883.0,61882.0,0.11]
[1728158119976,0.00242444,61883.0,61882.0,0.174642]
[1728158121275,0.00342444,61883.0,61882.0,0.175642]
[1728158121872,0.00342444,61883.0,61882.0,0.174642]
[1728158125368,0.11342444,61883.0,61879.0,0.064644]
[1728158125565,0.064644,61881.0,61880.0,0.064644]
[1728158125786,0.064644,61881.0,61880.0,0.174644]
[1728158126680,0.06806544,61883.0,61882.0,0.064642]
[1728158126878,0.06706544,61883.0,61882.0,0.064642]
[1728158128080,0.06706544,61883.0,61882.0,0.065642]
[1728158130282,0.10416908,61883.0,61882.0,0.065642]
[1728158130585,0.06706544,61883.0,61882.0,0.065642]
[1728158131373,0.10418931,61883.0,61882.0,0.065642]
[1728158131774,0.14728577,61883.0,61880.0,0.09477925]
[1728158131985,0.17755865,61881.0,61879.0,0.02297612]
[1728158132198,0.17755865,61881.0,61879.0,0.064645]
[1728158132199,0.12982457,61880.0,61879.0,0.064645]
[1728158133475,0.17755865,61882.0,61881.0,0.064643]
[1728158133787,0.12778243,61882.0,61881.0,0.064643]
[1728158134086,0.48858243,61882.0,61881.0,0.064643]
[1728158134286,0.54662349,61882.0,61881.0,0.064643]
[1728158136480,0.72405383,61882.0,61881.0,0.064643]
[1728158136884,0.66601277,61882.0,61881.0,0.064643]
[1728158137486,0.66601277,61882.0,61881.0,0.08720913]
[1728158138278,0.72397314,61882.0,61881.0,0.08720913]
[1728158138483,0.5465428,61882.0,61881.0,0.08720913]
[1728158139882,0.3608,61882.0,61881.0,0.15181519]
[1728158141388,0.3608,61882.0,61881.0,0.08720913]
[1728158143591,0.3608,61882.0,61881.0,0.19720913]
[1728158145487,0.3608,61882.0,61881.0,0.19820913]
[1728158146903,0.48892101,61882.0,61881.0,0.111]
[1728158147400,0.48892101,61882.0,61881.0,0.175643]
[1728158147598,0.54688125,61882.0,61881.0,0.175643]
[1728158147795,0.72437431,61882.0,61881.0,0.175643]
[1728158148091,0.72287875,61882.0,61881.0,0.175643]
[1728158150294,0.72287875,61882.0,61881.0,0.1984016]
[1728158151705,0.66491851,61882.0,61881.0,0.1984016]
[1728158152900,0.72290431,61882.0,61881.0,0.1984016]
[1728158154100,0.72290431,61882.0,61881.0,0.1974016]
[1728158155109,0.3608,61882.0,61881.0,0.1974016]
[1728158162013,0.3608,61882.0,61881.0,0.0874016]
[1728158162014,0.66499088,61882.0,61881.0,0.0874016]
[1728158162402,0.48749782,61882.0,61881.0,0.0874016]
[1728158164014,0.30419088,61882.0,61881.0,0.0874016]
[1728158164318,0.66499088,61882.0,61881.0,0.0874016]
[1728158164516,0.48749782,61882.0,61881.0,0.0874016]
[1728158164813,0.55213982,61882.0,61881.0,0.0874016]
[1728158166319,0.55048366,61882.0,61881.0,0.0874016]
[1728158167513,0.60844548,61882.0,61881.0,0.0874016]
[1728158168424,0.55048366,61882.0,61881.0,0.0874016]
[1728158169320,0.18968366,61882.0,61881.0,0.0874016]
[1728158169519,0.55048366,61882.0,61881.0,0.0874016]
[1728158169925,0.425442,61882.0,61881.0,0.0874016]
[1728158177126,0.69588023,61882.0,61881.0,0.0874016]
[1728158178032,0.5504903,61882.0,61881.0,0.0874016]
[1728158179432,0.5504903,61882.0,61877.0,0.064647]
[1728158179628,0.064646,61878.0,61877.0,0.064647]
[1728158179832,0.21002268,61878.0,61877.0,0.064647]
[1728158180138,0.1896943,61878.0,61877.0,0.064647]
[1728158180325,0.29450643,61878.0,61877.0,0.064647]
[1728158180519,0.33503982,61878.0,61877.0,0.064647]
[1728158180725,0.33477528,61878.0,61877.0,0.064647]
[1728158184233,0.064646,61878.0,61877.0,0.064647]
[1728158195831,0.3608,61882.0,61876.0,0.11]
[1728158196028,0.3608,61882.0,61871.0,0.10916929]
[1728158196029,0.3608,61882.0,61881.0,0.174643]
[1728158199029,0.48594286,61882.0,61881.0,0.10099951]
[1728158199439,0.48594286,61882.0,61881.0,0.16564251]
[1728158200444,0.48458637,61882.0,61881.0,0.16564251]
[1728158200843,0.48458637,61882.0,61881.0,0.19422654]
[1728158202843,0.72024222,61882.0,61881.0,0.19422654]
[1728158204145,0.6622818,61882.0,61881.0,0.19422654]
[1728158204642,0.2852254,61882.0,61881.0,0.19422654]
[1728158204845,0.12378637,61882.0,61881.0,0.19422654]
[1728158205039,0.12401691,61882.0,61881.0,0.12958354]
[1728158205235,0.12401691,61882.0,61881.0,0.19422654]
[1728158206550,0.00242444,61883.0,61882.0,0.064642]
[1728158209345,0.00242444,61883.0,61882.0,0.065642]
[1728158222267,0.16384832,61883.0,61881.0,0.11436901]
[1728158222457,0.12405581,61882.0,61881.0,0.17901201]
[1728158224368,0.28547969,61882.0,61881.0,0.17901201]
[1728158225263,0.12505581,61882.0,61881.0,0.17901201]
[1728158228062,0.16245394,61882.0,61881.0,0.17901201]
[1728158228366,0.12397663,61882.0,61881.0,0.17901201]
[1728158228557,0.28543057,61882.0,61881.0,0.17901201]
[1728158229174,0.001,61882.0,61881.0,0.38679899]
[1728158229562,0.001,61882.0,61881.0,0.28973966]
[1728158229861,0.001,61882.0,61881.0,0.38668214]
[1728158230064,0.001,61882.0,61881.0,0.38668258]
[1728158231856,0.001,61882.0,61881.0,0.28973966]
[1728158237274,0.04056901,61882.0,61881.0,0.17901201]
[1728158237477,0.001,61882.0,61881.0,0.17901201]
[1728158238967,0.0745376,61882.0,61881.0,0.17901201]
[1728158244180,0.001,61882.0,61881.0,0.42145953]
[1728158245381,0.001,61882.0,61881.0,0.28961956]
[1728158247584,0.001,61882.0,61881.0,0.28966223]
[1728158249177,0.001,61882.0,61881.0,0.28969383]
[1728158252384,0.14630982,61882.0,61881.0,0.09322703]
[1728158252693,0.28559361,61882.0,61881.0,0.16516703]
[1728158254182,0.12413967,61882.0,61881.0,0.16516703]
[1728158254587,0.16258204,61882.0,61881.0,0.16516703]
[1728158254884,0.08457076,61882.0,61881.0,0.16516703]
[1728158255088,0.12413967,61882.0,61881.0,0.16516703]
[1728158255576,0.12413967,61882.0,61881.0,0.19451628]
[1728158257187,0.08414162,61882.0,61881.0,0.19451628]
[1728158257389,0.05059899,61882.0,61881.0,0.19451628]
[1728158257684,0.001,61882.0,61881.0,0.19451628]
[1728158257989,0.12371216,61882.0,61881.0,0.19451628]
[1728158259389,0.001,61882.0,61881.0,0.30561258]
[1728158259577,0.001,61882.0,61881.0,0.43803399]
[1728158262186,0.001,61882.0,61881.0,0.43796267]
[1728158267092,0.001,61882.0,61881.0,0.43796841]
[1728158267290,0.001,61882.0,61881.0,0.19451628]
[1728158267485,0.03459207,61882.0,61881.0,0.19451628]
[1728158271982,0.03462382,61882.0,61881.0,0.19451628]
[1728158274283,0.03462382,61882.0,61881.0,0.43796506]
[1728158274284,0.001,61882.0,61881.0,0.43796506]
[1728158280901,0.001,61882.0,61881.0,0.43805848]
[1728158282285,0.001,61882.0,61881.0,0.19451628]
[1728158290506,0.07416702,61882.0,61881.0,0.19451628]
[1728158296706,0.03459703,61882.0,61881.0,0.19451628]
[1728158297017,0.07416744,61882.0,61881.0,0.19451628]
[1728158297396,0.001,61882.0,61881.0,0.4380777]
[1728158297896,0.001,61882.0,61881.0,0.43809192]
[1728158298498,0.001,61882.0,61881.0,0.43808566]
[1728158298704,0.001,61882.0,61881.0,0.30563201]
[1728158300010,0.001,61882.0,61881.0,0.30562811]
[1728158300202,0.001,61882.0,61881.0,0.19562811]
[1728158300502,0.001,61882.0,61881.0,0.14046108]
[1728158300911,0.651,61882.0,61881.0,0.14046108]
[1728158301608,0.001,61882.0,61881.0,0.14046108]
[1728158303508,0.001,61882.0,61881.0,0.20510408]
[1728158304718,0.001,61882.0,61881.0,0.20510601]
[1728158309311,0.001,61882.0,61881.0,0.20512621]
[1728158312030,0.001,61882.0,61881.0,0.205117]
[1728158312409,0.07405548,61882.0,61881.0,0.09399225]
[1728158314620,0.07407715,61882.0,61881.0,0.09399225]
[1728158317220,0.03450611,61882.0,61881.0,0.09399225]
[1728158319318,0.0345067,61882.0,61881.0,0.09399225]
[1728158319516,0.001,61882.0,61881.0,0.20510855]
[1728158327524,0.07407555,61882.0,61881.0,0.09399225]
[1728158329328,0.07407302,61882.0,61881.0,0.09399225]
[1728158332630,0.03450178,61882.0,61881.0,0.09399225]
[1728158334225,0.03452094,61882.0,61881.0,0.09399225]
[1728158334421,0.001,61882.0,61881.0,0.2051523]
[1728158339539,0.001,61882.0,61881.0,0.30216688]
[1728158339837,0.001,61882.0,61881.0,0.2051523]
[1728158340530,0.001,61882.0,61881.0,0.30216688]
[1728158342429,0.001,61882.0,61881.0,0.09399225]
[1728158342939,0.07409083,61882.0,61881.0,0.09399225]
[1728158347232,0.04057121,61882.0,61881.0,0.09399225]
[1728158347434,0.001,61882.0,61881.0,0.09399225]
[1728158347638,0.04057121,61882.0,61881.0,0.09399225]
[1728158347831,0.0740648,61882.0,61881.0,0.09399225]